[Event "BL Meisterschaftsturnier 2020"]
[Site "Karlsruhe"]
[Date "2020.09.17"]
[Round "3.15"]
[White "Kozul, Zdenko"]
[Black "Lokander, Martin"]
[Result "1/2-1/2"]
[ECO "D85"]
[WhiteElo "2597"]
[BlackElo "2406"]
[Annotator "ChessBase"]
[PlyCount "123"]
[EventDate "2020.09.16"]
[EventType "team-tourn"]
[EventCountry "GER"]
[WhiteTeam "Deizisau"]
[BlackTeam "Bayern Muenchen"]
[TimeControl "40/5400+30:1800+30"]

1. d4 {[%emt 0:00:00]} Nf6 {[%emt 0:00:00]} 2. Nf3 {[%emt 0:00:00]} g6 {[%emt 0:00:24]} 3. c4 {[%emt 0:00:14]} Bg7 {[%emt 0:00:09]} 4. Nc3 {[%emt 0:00:14]} d5 {[%emt 0:00:28]} 5. cxd5 {[%emt 0:01:13]} Nxd5 {[%emt 0:00:09]} 6. e4 {[%emt 0:00:08]} Nxc3 {[%emt 0:00:05]} 7. bxc3 {[%emt 0:00:07]} c5 {[%emt 0:00:08]} 8. Be3 {[%emt 0:02:07]} Qa5 {[%emt 0:00:55]} 9. Qd2 {[%emt 0:00:29]} O-O {[%emt 0:00:39]} 10. Rc1 {[%emt 0:00:56]} Bg4 {[%emt 0:00:32]} 11. d5 {[%emt 0:07:59]} b5 {[%emt 0:01:33]} 12. Be2 {[%emt 0:06:50]} Nd7 {[%emt 0:02:16]} 13. O-O {[%emt 0:01:12]} Rfd8 {[%emt 0:02:26]} 14. Rfd1 {[%emt 0:24:44]} Bxf3 {[%emt 0:05:27]} 15. Bxf3 {[%emt 0:01:20]} c4 {[%emt 0:00:37]} 16. h4 {[%emt 0:08:58]} Qc7 {[%emt 0:02:34]} 17. h5 {[%emt 0:03:10]} Nc5 {[%emt 0:01:02]} 18. Rb1 {[%emt 0:02:34]} Rab8 {[%emt 0:02:39]} 19. Bd4 {[%emt 0:00:54]} Bxd4 {[%emt 0:14:05]} 20. cxd4 {[%emt 0:02:27]} Nd3 {[%emt 0:03:50]} 21. g3 {[%emt 0:05:03]} Qb6 {[%emt 0:02:06]} 22. Be2 {[%emt 0:04:18]} Qxd4 {[%emt 0:01:24]} 23. Bxd3 {[%emt 0:00:07]} cxd3 {[%emt 0:00:27]} 24. Qxd3 {[%emt 0:00:37]} Qxd3 {[%emt 0:05:04]} 25. Rxd3 {[%emt 0:00:07]} Rdc8 {[%emt 0:00:31]} 26. Ra3 {[%emt 0:07:26]} Rc4 {[%emt 0:02:05]} 27. Rxa7 {[%emt 0:01:48]} Rxe4 {[%emt 0:00:40]} 28. h6 {[%emt 0:00:11]} f5 {[%emt 0:09:42]} 29. d6 {[%emt 0:00:33]} Kf7 {[%emt 0:01:23]} 30. Kf1 {[%emt 0:04:53]} Re6 {[%emt 0:01:58]} 31. d7 {[%emt 0:10:23]} Rd6 {[%emt 0:01:06]} 32. Rb4 {[%emt 0:00:45]} Ke6 {[%emt 0:07:07]} 33. a4 {[%emt 0:00:07]} Rxd7 {[%emt 0:00:19]} 34. Ra5 {[%emt 0:00:23]} Rdb7 {[%emt 0:04:24]} 35. axb5 {[%emt 0:01:02]} Kd6 {[%emt 0:02:52]} 36. Rb2 {[%emt 0:00:40]} Kc5 {[%emt 0:03:13]} 37. b6+ {[%emt 0:00:40]} Kc6 {[%emt 0:03:24]} 38. Re5 {[%emt 0:01:40]} Kd7 {[%emt 0:01:03]} 39. Reb5 {[%emt 0:00:27]} e6 {[%emt 0:07:45]} 40. Ra5 {[%emt 0:01:24]} Kc6 {[%emt 0:04:30]} 41. Rc2+ {[%emt 0:11:39]} Kxb6 {[%emt 0:04:54]} 42. Ra1 {[%emt 0:00:58]} Re8 {[%emt 0:00:45]} 43. Kg2 {[%emt 0:06:06]} e5 {[%emt 0:01:48]} 44. g4 {[%emt 0:00:35]} fxg4 {[%emt 0:01:27]} 45. Kg3 {[%emt 0:00:36]} Rf8 {[%emt 0:00:39]} 46. Kxg4 {[%emt 0:03:23]} Rf4+ {[%emt 0:02:31]} 47. Kg3 {[%emt 0:00:07]} Rb4 {[%emt 0:01:00]} 48. Rc8 {[%emt 0:01:19]} Rc7 {[%emt 0:05:51]} 49. Rb8+ {[%emt 0:00:55]} Kc5 {[%emt 0:00:36]} 50. Ra5+ {[%emt 0:02:24]} Kc4 {[%emt 0:00:18]} 51. Rxb4+ {[%emt 0:00:07]} Kxb4 {[%emt 0:00:03]} 52. Rxe5 {[%emt 0:00:07]} Kc4 {[%emt 0:00:25]} 53. Kg4 {[%emt 0:01:19]} Kd4 {[%emt 0:00:46]} 54. f4 {[%emt 0:00:30]} Rf7 {[%emt 0:00:17]} 55. Kg5 {[%emt 0:00:13]} Kc4 {[%emt 0:00:42]} 56. Kg4 {[%emt 0:01:55]} Kd4 {[%emt 0:00:29]} 57. Kf3 {[%emt 0:01:35]} Rd7 {[%emt 0:01:02]} 58. Ra5 {[%emt 0:02:00]} Rf7 {[%emt 0:00:36]} 59. Kg4 {[%emt 0:00:25]} Ke4 {[%emt 0:01:09]} 60. Re5+ {[%emt 0:01:30]} Kd4 {[%emt 0:00:06]} 61. Kg5 Kc4 {[%emt 0:00:19]} 62. Kg4 {[%emt 0:03:33]} 1/2-1/2

[Event "BL Meisterschaftsturnier 2020"]
[Site "Karlsruhe"]
[Date "2020.09.17"]
[Round "3.16"]
[White "Rafiee, Makan"]
[Black "Demuth, Adrien"]
[Result "1/2-1/2"]
[ECO "B89"]
[WhiteElo "2334"]
[BlackElo "2492"]
[Annotator "ChessBase"]
[PlyCount "105"]
[EventDate "2020.09.16"]
[EventType "team-tourn"]
[EventCountry "GER"]
[WhiteTeam "Bayern Muenchen"]
[BlackTeam "Deizisau"]
[TimeControl "40/5400+30:1800+30"]

1. e4 {[%emt 0:00:00]} c5 {[%emt 0:00:00]} 2. Nf3 {[%emt 0:00:00]} Nc6 {[%emt 0:00:06]} 3. d4 {[%emt 0:00:00]} cxd4 {[%emt 0:00:07]} 4. Nxd4 {[%emt 0:00:02]} Nf6 {[%emt 0:00:05]} 5. Nc3 {[%emt 0:00:06]} d6 {[%emt 0:00:05]} 6. Bc4 {[%emt 0:00:18]} e6 {[%emt 0:00:26]} 7. Be3 {[%emt 0:00:09]} Be7 {[%emt 0:00:37]} 8. Bb3 {[%emt 0:00:29]} O-O {[%emt 0:00:31]} 9. Qe2 {[%emt 0:00:12]} a6 {[%emt 0:03:10]} 10. O-O-O {[%emt 0:00:10]} Nxd4 {[%emt 0:01:00]} 11. Bxd4 {[%emt 0:00:06]} b5 {[%emt 0:00:35]} 12. g4 {[%emt 0:06:42]} b4 {[%emt 0:01:15]} 13. Na4 {[%emt 0:02:33]} Bb7 {[%emt 0:00:14]} 14. f3 {[%emt 0:04:20]} Nd7 {[%emt 0:02:37]} 15. Qf2 {[%emt 0:19:49]} Bc6 {[%emt 0:32:09]} 16. Nb6 {[%emt 0:12:55]} Nxb6 {[%emt 0:10:51]} 17. Bxb6 {[%emt 0:00:06]} Qb8 {[%emt 0:00:13]} 18. Rhe1 {[%emt 0:08:47]} a5 {[%emt 0:04:12]} 19. Bc4 {[%emt 0:02:53]} Rc8 {[%emt 0:03:29]} 20. Kb1 {[%emt 0:05:19]} a4 {[%emt 0:03:07]} 21. b3 {[%emt 0:16:11]} Bb7 {[%emt 0:09:30]} 22. Bd3 {[%emt 0:05:38]} Ba6 {[%emt 0:01:40]} 23. Bd4 {[%emt 0:01:58]} Bxd3 {[%emt 0:01:06]} 24. Rxd3 {[%emt 0:00:24]} Qb5 25. Red1 {[%emt 0:00:30]} Rc6 {[%emt 0:03:00]} 26. Qe2 {[%emt 0:01:01]} Bg5 {[%emt 0:10:26]} 27. R3d2 {[%emt 0:03:56]} Qa5 {[%emt 0:01:19]} 28. Be3 {[%emt 0:00:09]} axb3 {[%emt 0:01:39]} 29. cxb3 {[%emt 0:00:09]} Bxe3 {[%emt 0:07:03]} 30. Qxe3 {[%emt 0:00:04]} Rc3 {[%emt 0:00:05]} 31. Qd4 {[%emt 0:02:11]} Rxf3 {[%emt 0:00:48]} 32. Qb2 {[%emt 0:07:43]} Ra6 {[%emt 0:02:28]} 33. Rd3 {[%emt 0:00:24]} Rxd3 {[%emt 0:00:41]} 34. Rxd3 {[%emt 0:00:04]} h6 {[%emt 0:00:53]} 35. Qd2 {[%emt 0:00:49]} Qc5 {[%emt 0:00:50]} 36. Rd4 {[%emt 0:00:05]} Rb6 {[%emt 0:00:23]} 37. h3 {[%emt 0:01:19]} d5 {[%emt 0:01:18]} 38. exd5 {[%emt 0:00:22]} exd5 {[%emt 0:00:04]} 39. Rxd5 {[%emt 0:00:16]} Qc6 {[%emt 0:00:45]} 40. Rd8+ {[%emt 0:00:23]} Kh7 41. Qd3+ {[%emt 0:30:41]} g6 {[%emt 0:03:14]} 42. Rd7 {[%emt 0:00:00]} Qh1+ {[%emt 0:11:25]} 43. Qd1 {[%emt 0:00:00]} Qe4+ {[%emt 0:00:10]} 44. Qd3 {[%emt 0:00:00]} Qe1+ {[%emt 0:00:59]} 45. Qd1 {[%emt 0:00:00]} Qe8 {[%emt 0:01:07]} 46. Qd4 {[%emt 0:00:00]} Rc6 {[%emt 0:09:24]} 47. Kb2 {[%emt 0:00:00]} Re6 {[%emt 0:04:38]} 48. Rc7 {[%emt 0:00:00]} Re2+ {[%emt 0:00:22]} 49. Rc2 {[%emt 0:00:00]} Re4 {[%emt 0:00:20]} 50. Qf6 {[%emt 0:00:00]} Re6 {[%emt 0:00:42]} 51. Qd4 {[%emt 0:00:00]} Re4 {[%emt 0:00:59]} 52. Qf6 {[%emt 0:00:00]} Re6 {[%emt 0:01:43]} 53. Qd4 {[%emt 0:00:00]} 1/2-1/2

[Event "BL Meisterschaftsturnier 2020"]
[Site "Karlsruhe"]
[Date "2020.09.17"]
[Round "3.16"]
[White "Rudolf, Henrik"]
[Black "Movsesian, Sergei"]
[Result "0-1"]
[ECO "B43"]
[WhiteElo "2295"]
[BlackElo "2649"]
[Annotator "ChessBase"]
[PlyCount "64"]
[EventDate "2020.09.16"]
[EventType "team-tourn"]
[EventCountry "GER"]
[WhiteTeam "SF Berlin"]
[BlackTeam "Baden-Baden"]
[TimeControl "40/5400+30:1800+30"]

1. e4 {[%emt 0:00:00]} c5 {[%emt 0:00:00]} 2. Nf3 {[%emt 0:00:00]} e6 {[%emt 0:00:01]} 3. d4 {[%emt 0:00:00]} cxd4 {[%emt 0:00:05]} 4. Nxd4 {[%emt 0:00:00]} a6 {[%emt 0:00:19]} 5. Nc3 {[%emt 0:01:47]} Qc7 {[%emt 0:00:54]} 6. Be2 {[%emt 0:00:31]} b5 {[%emt 0:00:26]} 7. O-O {[%emt 0:00:32]} Bb7 {[%emt 0:00:32]} 8. Re1 {[%emt 0:00:25]} Bd6 {[%emt 0:00:38]} 9. g3 {[%emt 0:09:47]} Be7 {[%emt 0:00:40]} 10. Bf3 {[%emt 0:12:42]} d6 {[%emt 0:01:06]} 11. a4 {[%emt 0:04:13]} bxa4 {[%emt 0:00:06]} 12. Nxa4 {[%emt 0:05:33]} Nd7 {[%emt 0:02:46]} 13. b3 {[%emt 0:09:33]} Ngf6 {[%emt 0:02:31]} 14. c4 {[%emt 0:00:45]} O-O {[%emt 0:00:51]} 15. Bg2 {[%emt 0:11:16]} Rab8 {[%emt 0:05:53]} 16. f4 {[%emt 0:06:19]} Rfd8 {[%emt 0:06:49]} 17. Ba3 {[%emt 0:06:12]} Nc5 {[%emt 0:02:39]} 18. Nc3 {[%emt 0:00:14]} Ba8 {[%emt 0:02:21]} 19. b4 {[%emt 0:06:21]} Ncd7 {[%emt 0:01:49]} 20. Rc1 {[%emt 0:00:21]} Nb6 {[%emt 0:03:41]} 21. Bf1 {[%emt 0:09:15]} Qa7 {[%emt 0:05:28]} 22. Kh1 {[%emt 0:05:49]} Rbc8 {[%emt 0:01:53]} 23. Nd5 {[%emt 0:01:00]} exd5 {[%emt 0:04:35]} 24. cxd5 {[%emt 0:00:04]} Nxe4 {[%emt 0:08:01]} 25. Rxe4 {[%emt 0:00:19]} Nxd5 {[%emt 0:00:34]} 26. Bg2 {[%emt 0:02:25]} Nc3 {[%emt 0:01:13]} 27. Rxc3 {[%emt 0:00:29]} Rxc3 {[%emt 0:00:58]} 28. Bb2 {[%emt 0:00:44]} Rc4 {[%emt 0:05:11]} 29. Qd3 {[%emt 0:01:48]} Rdc8 {[%emt 0:00:49]} 30. h4 {[%emt 0:00:28]} Bxe4 {[%emt 0:01:49]} 31. Bxe4 {[%emt 0:00:15]} Bf6 {[%emt 0:01:48]} 32. Bxh7+ {[%emt 0:00:10]} Kf8 {[%emt 0:00:18]} 0-1

[Event "BL Meisterschaftsturnier 2020"]
[Site "Karlsruhe"]
[Date "2020.09.18"]
[Round "4.4"]
[White "Keymer, Vincent"]
[Black "Piceu, Tom"]
[Result "1-0"]
[ECO "D35"]
[WhiteElo "2568"]
[BlackElo "2347"]
[Annotator "RC"]
[PlyCount "57"]
[EventDate "2020.09.16"]
[EventType "team-tourn"]
[EventCountry "GER"]
[SourceTitle "playchess.com"]
[Source "ChessBase"]
[SourceQuality "1"]
[WhiteTeam "Deizisau"]
[BlackTeam "Aachen"]
[TimeControl "40/5400+30:1800+30"]

1. d4 {[%emt 0:00:00]} Nf6 {[%emt 0:00:00]} 2. c4 {[%emt 0:00:00]} e6 {[%emt 0:00:00]} 3. Nc3 {[%emt 0:00:00]} d5 {[%emt 0:00:00]} 4. cxd5 {[%emt 0:00:00]} exd5 {[%emt 0:00:00]} 5. Bg5 {[%emt 0:00:00]} Be7 {[%emt 0:00:07]} 6. e3 {[%emt 0:00:00]} O-O {[%emt 0:00:12]} 7. Bd3 {[%emt 0:01:17]} c6 {[%emt 0:00:49]} 8. Nf3 {[%emt 0:03:36]} Nbd7 {[%emt 0:03:13]} 9. Qc2 {[%emt 0:00:20]} h6 {[%emt 0:01:54]} 10. Bh4 {[%emt 0:00:55]} Re8 {[%emt 0:00:36]} 11. Nd2 {[%emt 0:00:21]} c5 {[%emt 0:06:04]} 12. Nf3 {[%emt 0:13:39]} a6 {[%emt 0:03:28]} 13. dxc5 {[%emt 0:03:13]} Nxc5 {[%emt 0:00:32]} 14. O-O {[%emt 0:00:14]} Bg4 {[%emt 0:08:35]} 15. Nd4 {[%emt 0:03:14]} Rc8 {[%emt 0:04:19]} 16. Nf5 {[%emt 0:08:31]} Bf8 {[%emt 0:14:10]} 17. h3 {[%emt 0:06:10]} Nxd3 {[%emt 0:29:06]} 18. Qxd3 {[%emt 0:03:53]} Bxf5 {[%emt 0:00:03]} 19. Qxf5 {[%emt 0:00:17]} Qd7 {[%emt 0:00:02]} 20. Qxd7 {[%emt 0:12:42]} Nxd7 {[%emt 0:00:15]} 21. Nxd5 {[%emt 0:06:36]} Rc2 {[%emt 0:00:17]} 22. Rfd1 {[%emt 0:02:06]} g5 {[%emt 0:06:20]} 23. Bg3 {[%emt 0:03:51]} Rxb2 {[%emt 0:01:28]} 24. Rac1 {[%emt 0:00:29]} Bg7 {[%emt 0:07:25]} 25. Rc7 {[%emt 0:03:21]} Ne5 {[%emt 0:01:41]} 26. Ne7+ {[%emt 0:00:12]} Kf8 {[%emt 0:00:49]} 27. Nf5 {[%emt 0:00:22]} b5 {[%emt 0:00:44]} 28. Rd5 {[%emt 0:03:59]} Ng6 {[%emt 0:03:32]} 29. Rdd7 {[%emt 0:01:56]} 1-0

[Event "BL Meisterschaftsturnier 2020"]
[Site "Karlsruhe"]
[Date "2020.09.18"]
[Round "4.15"]
[White "Reuker, Jari"]
[Black "Tarlev, Konstantin"]
[Result "0-1"]
[ECO "A06"]
[WhiteElo "2401"]
[BlackElo "2561"]
[Annotator "RC"]
[PlyCount "64"]
[EventDate "2020.09.16"]
[EventType "team-tourn"]
[EventCountry "GER"]
[SourceTitle "playchess.com"]
[Source "ChessBase"]
[SourceQuality "1"]
[WhiteTeam "Werder Bremen"]
[BlackTeam "Viernheim"]
[TimeControl "40/5400+30:1800+30"]

1. Nf3 {[%emt 0:00:00]} d5 {[%emt 0:02:08]} 2. g3 {[%emt 0:00:17]} Bg4 {[%emt 0:01:38]} 3. Bg2 {[%emt 0:00:15]} c6 {[%emt 0:01:23]} 4. c4 {[%emt 0:00:49]} e6 {[%emt 0:04:35]} 5. O-O {[%emt 0:01:39]} Nf6 {[%emt 0:10:43]} 6. d3 {[%emt 0:05:44]} Be7 {[%emt 0:15:29]} 7. Qb3 {[%emt 0:03:32]} Qb6 {[%emt 0:01:16]} 8. Be3 {[%emt 0:01:50]} dxc4 {[%emt 0:27:14]} 9. dxc4 {[%emt 0:30:41]} Qa6 {[%emt 0:00:55]} 10. h3 {[%emt 0:02:37]} Bh5 {[%emt 0:01:05]} 11. g4 {[%emt 0:03:57]} Bg6 {[%emt 0:00:06]} 12. Ne5 {[%emt 0:01:06]} Nbd7 {[%emt 0:01:28]} 13. Nxg6 {[%emt 0:01:41]} hxg6 {[%emt 0:00:03]} 14. g5 {[%emt 0:01:23]} Nh7 {[%emt 0:02:44]} 15. h4 {[%emt 0:10:53]} Nhf8 {[%emt 0:01:13]} 16. Nd2 {[%emt 0:02:40]} Rxh4 {[%emt 0:00:27]} 17. Qc3 {[%emt 0:01:55]} e5 {[%emt 0:05:13]} 18. Ne4 {[%emt 0:04:00]} f5 {[%emt 0:03:14]} 19. gxf6 {[%emt 0:00:32]} gxf6 {[%emt 0:00:05]} 20. f4 {[%emt 0:13:41]} f5 {[%emt 0:01:32]} 21. Nd2 {[%emt 0:00:36]} e4 {[%emt 0:02:08]} 22. b4 {[%emt 0:02:57]} Bf6 {[%emt 0:04:37]} 23. Bd4 {[%emt 0:00:31]} Bxd4+ {[%emt 0:04:53]} 24. Qxd4 {[%emt 0:00:01]} Ne6 {[%emt 0:00:46]} 25. Qc3 {[%emt 0:05:29]} Rxf4 {[%emt 0:04:37]} 26. Qh8+ {[%emt 0:00:06]} Ndf8 {[%emt 0:00:04]} 27. Rxf4 {[%emt 0:01:48]} Nxf4 {[%emt 0:00:03]} 28. Qe5+ {[%emt 0:02:01]} N4e6 {[%emt 0:00:09]} 29. Bxe4 {[%emt 0:01:17]} Qb6+ {[%emt 0:01:36]} 30. c5 {[%emt 0:00:17]} Qxb4 {[%emt 0:00:19]} 31. Rd1 {[%emt 0:00:37]} O-O-O {[%emt 0:00:56]} 32. Bd3 {[%emt 0:00:28]} Qg4+ {[%emt 0:00:54]} 0-1

[Event "BL Meisterschaftsturnier 2020"]
[Site "Karlsruhe"]
[Date "2020.09.19"]
[Round "5.3"]
[White "Abergel, Thal"]
[Black "Vandenbussche, Thibaut"]
[Result "1-0"]
[ECO "C41"]
[WhiteElo "2460"]
[BlackElo "2435"]
[Annotator "ChessBase"]
[PlyCount "159"]
[EventDate "2020.09.16"]
[EventType "team-tourn"]
[EventCountry "GER"]
[SourceTitle "playchess.com"]
[Source "ChessBase"]
[SourceQuality "1"]
[WhiteTeam "Viernheim"]
[BlackTeam "Aachen"]
[TimeControl "40/5400+30:1800+30"]

1. e4 {[%emt 0:00:00]} d6 {[%emt 0:00:49]} 2. d4 {[%emt 0:00:00]} Nf6 {[%emt 0:00:05]} 3. Nc3 {[%emt 0:00:00]} e5 {[%emt 0:00:09]} 4. Nf3 {[%emt 0:00:30]} Nbd7 {[%emt 0:00:09]} 5. Bc4 {[%emt 0:00:17]} Be7 {[%emt 0:00:05]} 6. O-O {[%emt 0:00:42]} O-O {[%emt 0:00:05]} 7. a4 {[%emt 0:00:39]} a6 {[%emt 0:02:15]} 8. a5 {[%emt 0:00:25]} exd4 {[%emt 0:02:20]} 9. Qxd4 {[%emt 0:03:16]} h6 {[%emt 0:00:08]} 10. h3 {[%emt 0:02:07]} Ne5 {[%emt 0:01:04]} 11. Be2 {[%emt 0:03:28]} Be6 {[%emt 0:04:54]} 12. Rd1 {[%emt 0:03:48]} c5 13. Qe3 {[%emt 0:08:19]} Qc7 {[%emt 0:07:01]} 14. Nxe5 {[%emt 0:04:33]} dxe5 {[%emt 0:00:09]} 15. Nd5 {[%emt 0:05:21]} Bxd5 {[%emt 0:09:00]} 16. exd5 {[%emt 0:00:03]} e4 {[%emt 0:00:50]} 17. Qb3 {[%emt 0:09:04]} Bd6 {[%emt 0:05:10]} 18. Be3 Rae8 {[%emt 0:05:33]} 19. Qc4 {[%emt 0:09:19]} Qe7 {[%emt 0:07:14]} 20. c3 {[%emt 0:00:17]} Rc8 {[%emt 0:07:37]} 21. Bf1 {[%emt 0:09:12]} Nd7 {[%emt 0:06:01]} 22. Qe2 {[%emt 0:01:43]} f5 {[%emt 0:03:49]} 23. f4 {[%emt 0:04:07]} exf3 {[%emt 0:05:37]} 24. Qxf3 {[%emt 0:01:11]} Ne5 {[%emt 0:01:23]} 25. Qe2 {[%emt 0:00:39]} f4 {[%emt 0:05:41]} 26. Bf2 {[%emt 0:00:39]} f3 {[%emt 0:01:47]} 27. Qe4 {[%emt 0:01:04]} fxg2 {[%emt 0:01:15]} 28. Bxg2 {[%emt 0:02:17]} Qg5 {[%emt 0:03:51]} 29. h4 {[%emt 0:01:50]} Qh5 {[%emt 0:01:30]} 30. Bh3 {[%emt 0:01:16]} Rce8 {[%emt 0:09:22]} 31. Be6+ {[%emt 0:00:46]} Kh8 {[%emt 0:00:22]} 32. Kg2 {[%emt 0:06:14]} Ng6 33. Qg4 {[%emt 0:03:12]} Qe5 {[%emt 0:03:20]} 34. Bg3 {[%emt 0:00:48]} Nf4+ {[%emt 0:00:14]} 35. Kh2 {[%emt 0:00:10]} h5 {[%emt 0:02:15]} 36. Qf3 {[%emt 0:00:14]} Nxe6 {[%emt 0:02:13]} 37. Bxe5 {[%emt 0:01:06]} Bxe5+ {[%emt 0:00:21]} 38. Kg2 {[%emt 0:00:05]} Rxf3 {[%emt 0:00:18]} 39. Kxf3 {[%emt 0:00:04]} Nf8 {[%emt 0:00:53]} 40. Ra4 {[%emt 0:02:32]} Nd7 {[%emt 0:01:57]} 41. Re4 {[%emt 0:31:25]} Kg8 {[%emt 0:03:33]} 42. Ke2 {[%emt 0:00:00]} Kf7 43. Rf1+ Ke7 {[%emt 0:03:42]} 44. Rf5 {[%emt 0:00:00]} Kd6 {[%emt 0:00:15]} 45. c4 {[%emt 0:00:00]} Re7 {[%emt 0:04:21]} 46. b3 {[%emt 0:00:00]} Nf6 {[%emt 0:07:34]} 47. Re3 {[%emt 0:00:00]} Ng4 48. Re4 g6 {[%emt 0:08:00]} 49. Rf8 {[%emt 0:00:00]} Bf6 {[%emt 0:00:34]} 50. Rxe7 {[%emt 0:00:00]} Bxe7 {[%emt 0:03:56]} 51. Rg8 {[%emt 0:00:00]} Bxh4 {[%emt 0:01:20]} 52. Rxg6+ {[%emt 0:00:00]} Bf6 {[%emt 0:01:41]} 53. Rg8 Ne5 54. Rb8 {[%emt 0:00:00]} Kc7 {[%emt 0:00:36]} 55. Rf8 Nd7 {[%emt 0:00:13]} 56. Rf7 {[%emt 0:00:00]} h4 {[%emt 0:01:20]} 57. Rh7 Bc3 {[%emt 0:01:28]} 58. Rxh4 {[%emt 0:00:00]} Bxa5 {[%emt 0:00:04]} 59. Kd3 {[%emt 0:00:00]} Be1 {[%emt 0:00:55]} 60. Rh7 {[%emt 0:00:00]} Bg3 {[%emt 0:01:22]} 61. Ke4 {[%emt 0:00:00]} b5 {[%emt 0:01:31]} 62. Kf5 {[%emt 0:00:00]} Kc8 {[%emt 0:00:49]} 63. Rh6 {[%emt 0:00:16]} Kb7 {[%emt 0:00:36]} 64. Ke6 {[%emt 0:00:10]} Nb6 {[%emt 0:00:31]} 65. Rh7+ {[%emt 0:00:44]} Kb8 {[%emt 0:00:14]} 66. Rh3 {[%emt 0:04:02]} Bf4 {[%emt 0:00:36]} 67. Rf3 {[%emt 0:01:59]} Bh2 {[%emt 0:00:06]} 68. cxb5 {[%emt 0:00:35]} axb5 {[%emt 0:00:01]} 69. d6 {[%emt 0:00:18]} c4 {[%emt 0:00:46]} 70. b4 {[%emt 0:04:45]} Na4 {[%emt 0:01:33]} 71. Rf5 {[%emt 0:00:51]} Kb7 {[%emt 0:00:36]} 72. d7 {[%emt 0:01:05]} Bc7 {[%emt 0:00:09]} 73. Rxb5+ {[%emt 0:00:50]} Kc6 {[%emt 0:00:07]} 74. Rb8 {[%emt 0:08:42]} c3 {[%emt 0:00:10]} 75. b5+ {[%emt 0:01:30]} Kc5 {[%emt 0:00:09]} 76. Rc8 {[%emt 0:00:05]} Kxb5 {[%emt 0:01:50]} 77. Rxc7 {[%emt 0:00:12]} Nc5+ {[%emt 0:00:20]} 78. Rxc5+ {[%emt 0:00:12]} Kxc5 {[%emt 0:00:03]} 79. d8=Q {[%emt 0:00:07]} Kb4 {[%emt 0:00:05]} 80. Qd1 {[%emt 0:00:13]} 1-0

[Event "BL Meisterschaftsturnier 2020"]
[Site "Karlsruhe"]
[Date "2020.09.19"]
[Round "5.16"]
[White "Wegerle, Joerg"]
[Black "Grafl, Florian"]
[Result "1-0"]
[ECO "B01"]
[WhiteElo "2401"]
[BlackElo "2353"]
[Annotator "ChessBase"]
[PlyCount "125"]
[EventDate "2020.09.16"]
[EventType "team-tourn"]
[EventCountry "GER"]
[SourceTitle "playchess.com"]
[Source "ChessBase"]
[SourceQuality "1"]
[WhiteTeam "Solingen"]
[BlackTeam "Bayern Muenchen"]
[TimeControl "40/5400+30:1800+30"]

1. e4 {[%emt 0:02:50]} d5 {[%emt 0:00:00]} 2. exd5 {[%emt 0:00:25]} Qxd5 {[%emt 0:00:00]} 3. Nc3 {[%emt 0:00:08]} Qd6 {[%emt 0:00:00]} 4. d4 {[%emt 0:00:31]} Nf6 {[%emt 0:00:00]} 5. Nf3 {[%emt 0:00:16]} c6 {[%emt 0:00:00]} 6. Ne5 {[%emt 0:03:33]} Nbd7 {[%emt 0:00:44]} 7. Nc4 {[%emt 0:01:36]} Qc7 {[%emt 0:00:04]} 8. Qf3 {[%emt 0:03:15]} Nb6 {[%emt 0:00:06]} 9. Bf4 {[%emt 0:06:02]} Qd8 {[%emt 0:00:53]} 10. Be5 {[%emt 0:02:49]} Be6 {[%emt 0:02:52]} 11. Ne3 {[%emt 0:02:11]} g6 {[%emt 0:03:12]} 12. O-O-O {[%emt 0:06:28]} Bh6 {[%emt 0:01:24]} 13. Kb1 {[%emt 0:08:37]} Bxe3 {[%emt 0:02:07]} 14. Qxe3 {[%emt 0:12:18]} Ng4 {[%emt 0:00:29]} 15. Qe1 {[%emt 0:02:36]} Nxe5 {[%emt 0:01:01]} 16. Qxe5 {[%emt 0:03:41]} O-O {[%emt 0:01:24]} 17. Bd3 {[%emt 0:01:40]} Nd5 {[%emt 0:15:11]} 18. Nxd5 {[%emt 0:05:20]} Qxd5 {[%emt 0:02:47]} 19. Qxd5 {[%emt 0:01:30]} Bxd5 {[%emt 0:00:07]} 20. Rhe1 {[%emt 0:00:30]} Rfe8 {[%emt 0:13:38]} 21. f3 {[%emt 0:04:15]} Rad8 {[%emt 0:03:35]} 22. b3 {[%emt 0:04:18]} Rd6 {[%emt 0:09:29]} 23. Kb2 {[%emt 0:05:25]} Be6 {[%emt 0:01:35]} 24. Bc4 {[%emt 0:01:23]} Bxc4 {[%emt 0:12:13]} 25. bxc4 {[%emt 0:00:51]} e6 {[%emt 0:10:54]} 26. Rd3 {[%emt 0:04:11]} Red8 {[%emt 0:05:47]} 27. Kc3 {[%emt 0:01:10]} R8d7 {[%emt 0:00:25]} 28. a4 {[%emt 0:03:02]} Kf8 {[%emt 0:00:33]} 29. a5 {[%emt 0:03:22]} Ke7 {[%emt 0:03:35]} 30. Rb1 {[%emt 0:04:29]} a6 {[%emt 0:00:35]} 31. Rbd1 {[%emt 0:00:34]} Kd8 {[%emt 0:00:56]} 32. Kb4 {[%emt 0:00:45]} Kc7 33. Kc5 {[%emt 0:00:14]} Rd8 {[%emt 0:02:01]} 34. Rb1 {[%emt 0:01:22]} R6d7 {[%emt 0:00:36]} 35. f4 {[%emt 0:01:45]} h5 {[%emt 0:00:59]} 36. g3 {[%emt 0:01:45]} Kb8 {[%emt 0:03:14]} 37. c3 {[%emt 0:01:42]} Ka8 {[%emt 0:01:36]} 38. Re3 {[%emt 0:00:38]} Rh8 {[%emt 0:01:13]} 39. Re5 {[%emt 0:00:48]} Rc8 {[%emt 0:00:37]} 40. h3 {[%emt 0:00:47]} Kb8 {[%emt 0:01:44]} 41. g4 {[%emt 0:06:45]} hxg4 {[%emt 0:00:06]} 42. hxg4 {[%emt 0:00:05]} Rh8 {[%emt 0:00:17]} 43. f5 {[%emt 0:02:53]} exf5 {[%emt 0:03:17]} 44. gxf5 {[%emt 0:00:42]} gxf5 {[%emt 0:07:30]} 45. Kb6 {[%emt 0:06:55]} c5 {[%emt 0:06:37]} 46. Kxc5 {[%emt 0:00:31]} Rh3 {[%emt 0:00:05]} 47. Kb4 {[%emt 0:02:02]} f4 {[%emt 0:06:09]} 48. Rf1 {[%emt 0:02:23]} Re3 {[%emt 0:01:15]} 49. Rf5 {[%emt 0:01:24]} f3 {[%emt 0:01:33]} 50. R1xf3 {[%emt 0:00:53]} Rxf3 {[%emt 0:00:03]} 51. Rxf3 {[%emt 0:00:15]} Kc8 {[%emt 0:03:55]} 52. d5 {[%emt 0:01:25]} Kd8 {[%emt 0:05:04]} 53. Kc5 {[%emt 0:01:05]} Rc7+ {[%emt 0:01:00]} 54. Kd4 {[%emt 0:01:27]} Rd7 {[%emt 0:01:35]} 55. c5 {[%emt 0:01:18]} Kc7 {[%emt 0:00:03]} 56. c4 {[%emt 0:01:37]} f6 {[%emt 0:00:09]} 57. Rxf6 {[%emt 0:02:03]} Rh7 {[%emt 0:00:01]} 58. c6 {[%emt 0:00:37]} b6 {[%emt 0:01:57]} 59. axb6+ {[%emt 0:00:54]} Kxb6 {[%emt 0:00:02]} 60. c5+ {[%emt 0:01:33]} Kc7 {[%emt 0:00:50]} 61. Rf4 {[%emt 0:00:39]} a5 {[%emt 0:00:44]} 62. Kc4 {[%emt 0:00:09]} a4 {[%emt 0:00:17]} 63. Kb5 1-0